fUSD/lending_fUSD_20241030
["ID","MTS","AMOUNT","RATE_DAILY","PERIOD"]
[341047742,1730302256178,-500.0,0.00034246,5]
[341047743,1730302256190,-500.0,0.00034246,5]
[341047744,1730302256199,-500.0,0.00034246,5]
[341047745,1730302256209,-500.0,0.00034246,5]
[341047746,1730302256217,-500.0,0.00034246,5]
[341047747,1730302256226,-500.0,0.00034246,5]
[341047748,1730302256235,-674.49,0.00034246,5]
[341047749,1730302256245,-982.93,0.00034246,5]
[341047750,1730302256254,-778.7,0.00034246,5]
[341047751,1730302256263,-500.0,0.00034246,5]
[341047752,1730302256272,-728.13,0.00034246,5]
[341047753,1730302256281,-500.0,0.00034246,5]
[341047754,1730302256291,-1522.75,0.00034246,5]
[341047755,1730302256300,-500.0,0.00034246,5]
[341047756,1730302256309,-552.1,0.00034246,5]
[341047757,1730302256318,-500.0,0.00034246,5]
[341047758,1730302256327,-500.0,0.00034246,5]
[341047759,1730302256337,-662.62,0.00034246,5]
[341047760,1730302256346,-500.0,0.00034246,5]
[341047761,1730302256355,-1018.42,0.00034246,5]
[341047762,1730302256365,-500.0,0.00034246,5]
[341047763,1730302256376,-500.0,0.00034246,5]
[341047764,1730302256386,-500.0,0.00034246,5]
[341047765,1730302256396,-1327.53,0.00034246,5]
[341047766,1730302256405,-500.0,0.00034246,5]
[341047767,1730302256414,-500.0,0.00034246,5]
[341047768,1730302256424,-560.36,0.00034246,5]
[341047769,1730302256436,-607.17,0.00034246,5]
[341047770,1730302256446,-500.0,0.00034246,5]
[341047771,1730302256456,-500.0,0.00034246,5]
[341047772,1730302256466,-508.13,0.00034246,5]
[341047773,1730302256475,-1605.64,0.00034246,2]
[341047774,1730302256484,-500.0,0.00034246,5]
[341047775,1730302256493,-863.12,0.00034246,5]
[341047776,1730302256503,-1678.61,0.00034246,5]
[341047777,1730302256513,-656.55,0.00034246,5]
[341047778,1730302256522,-893.64,0.00034246,5]
[341047779,1730302256534,-1610.11,0.00034246,5]
[341047780,1730302256544,-500.0,0.00034246,5]
[341047781,1730302256557,-742.19,0.00034246,5]
[341047782,1730302256566,-785.2,0.00034246,5]
[341047783,1730302256575,-638.8,0.00034246,5]
[341047784,1730302256584,-536.5,0.00034246,5]
[341047785,1730302256595,-948.73,0.00034246,5]
[341047786,1730302256604,-500.0,0.00034246,5]
[341047787,1730302256614,-596.98,0.00034246,5]
[341047788,1730302256624,-1435.74,0.00034246,5]
[341047789,1730302256634,-500.0,0.00034246,5]
[341047790,1730302256643,-500.0,0.00034246,5]
[341047791,1730302256653,-1131.97,0.00034246,5]
[341047792,1730302256662,-500.0,0.00034246,5]
[341047793,1730302256673,-500.0,0.00034246,5]
[341047794,1730302256682,-500.0,0.00034246,5]
[341047795,1730302256693,-2913.63,0.00034246,5]
[341047796,1730302256704,-262.9966128,0.00034246,5]
[341047797,1730302256714,-500.0,0.00034246,5]
[341047798,1730302256723,-500.0,0.00034246,5]
[341047799,1730302256733,-500.0,0.00034246,5]
[341047800,1730302256743,-1246.85,0.00034246,5]
[341047801,1730302256752,-500.0,0.00034246,5]
[341047802,1730302256762,-682.68,0.00034246,5]
[341047803,1730302256771,-909.5,0.00034246,5]
[341047804,1730302256781,-1653.57,0.00034246,5]
[341047805,1730302256790,-512.41,0.00034246,5]
[341047806,1730302256799,-500.0,0.00034246,5]
[341047807,1730302256808,-568.82,0.00034246,5]
[341047808,1730302256818,-500.0,0.00034246,5]
[341047809,1730302256827,-607.5,0.00034246,5]
[341047810,1730302256836,-500.0,0.00034246,5]
[341047811,1730302256845,-685.64,0.00034246,5]
[341047812,1730302256855,-500.0,0.00034246,5]
[341047813,1730302256864,-529.75,0.00034246,5]
[341047814,1730302256873,-548.22,0.00034246,5]
[341047815,1730302256883,-728.2,0.00034246,5]
[341047816,1730302256894,-500.0,0.00034246,5]
[341047817,1730302256904,-500.0,0.00034246,5]
[341047818,1730302256914,-1132.3,0.00034246,5]
[341047819,1730302257064,-500.0,0.00034246,5]
[341047820,1730302257074,-597.03,0.00034246,5]
[341047821,1730302257083,-500.0,0.00034246,5]
[341047822,1730302257093,-500.0,0.00034246,5]
[341047823,1730302257102,-1047.4,0.00034246,5]
[341047824,1730302257111,-397.74878601,0.00034246,5]
[341047825,1730302257121,-770.64,0.00034246,5]
[341047826,1730302257131,-500.0,0.00034246,5]
[341047827,1730302257140,-500.0,0.00034246,5]
[341047828,1730302257149,-534.42291054,0.00034246,5]
[341047829,1730302257159,-535.78,0.00034246,5]
[341047830,1730302257169,-500.0,0.00034246,5]
[341047831,1730302257178,-507.29,0.00034246,5]
[341047832,1730302257188,-879.42,0.00034246,5]
[341047833,1730302257198,-536.48,0.00034246,5]
[341047834,1730302257207,-1152.94,0.00034246,5]
[341047835,1730302257216,-500.0,0.00034246,5]
[341047836,1730302257226,-538.17,0.00034246,5]
[341047837,1730302257235,-1061.7,0.00034246,5]
[341047838,1730302257245,-500.0,0.00034246,5]
[341047839,1730302257255,-745.29,0.00034246,5]
[341047840,1730302257264,-1669.21,0.00034246,5]
[341047841,1730302257273,-3103.25,0.00034246,5]
[341047842,1730302257282,-500.0,0.00034246,5]
[341047843,1730302257292,-552.85051384,0.00034246,5]
[341047844,1730302257301,-500.0,0.00034246,5]
[341047845,1730302257311,-500.0,0.00034246,5]
[341047846,1730302257320,-500.0,0.0003452,5]
[341047847,1730302257329,-500.0,0.0003452,5]
[341047848,1730302257338,-366.8359592,0.0003452,5]
[341047849,1730302257347,-500.0,0.0003452,5]
[341047850,1730302257357,-500.0,0.0003452,5]
[341047851,1730302257366,-500.0,0.0003452,5]
[341047852,1730302257375,-500.0,0.0003452,5]
[341047853,1730302257385,-500.0,0.0003452,5]
[341047854,1730302257394,-500.0,0.0003452,5]
[341047855,1730302257403,-280.0771286,0.0003452,5]
[341047856,1730302257413,-500.0,0.0003452,5]
[341047857,1730302257422,-500.0,0.0003452,5]
[341047858,1730302257431,-500.0,0.0003452,5]
[341047859,1730302257442,-500.0,0.0003452,5]
[341047860,1730302257451,-500.0,0.0003452,5]
[341047861,1730302257460,-650.94,0.0003452,5]
[341047862,1730302257470,-500.0,0.0003452,5]
[341047863,1730302257479,-500.0,0.0003452,5]
[341047864,1730302257489,-452.63969096,0.0003452,5]
[341047865,1730302257498,-500.0,0.0003452,5]
[341047866,1730302257507,-645.8,0.0003452,5]
[341047867,1730302257516,-820.11,0.0003452,5]
[341047868,1730302257526,-1894.55,0.0003452,5]
[341047869,1730302257536,-2596.24,0.0003452,5]
[341047870,1730302257546,-1296.63,0.0003452,5]
[341047871,1730302257558,-500.0,0.0003452,5]
[341047872,1730302257567,-500.0,0.0003452,5]
[341047873,1730302257576,-500.0,0.0003452,5]
[341047874,1730302257586,-500.0,0.0003452,5]
[341047875,1730302257597,-500.0,0.0003452,5]
[341047876,1730302257607,-500.0,0.0003452,5]
[341047877,1730302257616,-500.0,0.0003452,5]
[341047878,1730302257629,-500.0,0.0003452,5]
[341047879,1730302257639,-500.0,0.0003452,5]
[341047880,1730302257648,-500.0,0.0003452,5]
[341047881,1730302257658,-500.0,0.0003452,5]
[341047882,1730302257668,-500.0,0.0003452,5]
[341047883,1730302257680,-500.0,0.0003452,5]
[341047884,1730302257691,-500.0,0.0003452,5]
[341047885,1730302257701,-522.83,0.0003452,5]
[341047886,1730302257711,-858.81,0.0003452,5]
[341047887,1730302257721,-644.61,0.0003452,5]
[341047888,1730302257731,-500.0,0.0003452,5]
[341047889,1730302257741,-500.0,0.0003452,5]
[341047890,1730302257751,-1013.76,0.0003452,5]
[341047891,1730302257760,-1525.36,0.0003452,5]
[341047892,1730302257770,-994.82,0.0003452,5]
[341047893,1730302257779,-1722.33,0.0003452,5]
[341047894,1730302257789,-500.0,0.0003452,5]
[341047895,1730302257799,-765.48,0.0003452,5]
[341047896,1730302257808,-520.05,0.0003452,5]
[341047897,1730302257818,-675.19,0.0003452,5]
[341047898,1730302257828,-746.68,0.0003452,5]
[341047899,1730302257838,-362.05354073,0.0003452,5]
[341047900,1730302257848,-500.0,0.0003452,5]
[341047901,1730302257857,-500.0,0.0003452,5]
[341047902,1730302257868,-784.67,0.0003452,5]
[341047903,1730302257879,-500.0,0.0003452,5]
[341047904,1730302257890,-500.0,0.0003452,5]
[341047905,1730302257900,-1069.78,0.0003452,5]
[341047906,1730302257910,-736.62,0.0003452,5]
[341047907,1730302257919,-328.01734352,0.0003452,5]
[341047908,1730302257929,-500.0,0.0003452,5]
[341047909,1730302257939,-854.42,0.0003452,5]
[341047910,1730302257948,-606.31,0.0003452,5]
[341047911,1730302257958,-500.0,0.0003452,5]
[341047912,1730302257969,-500.0,0.0003452,5]
[341047913,1730302257979,-500.0,0.0003452,5]
[341047914,1730302257991,-500.0,0.0003452,5]
[341047915,1730302258002,-500.0,0.0003452,5]
[341047916,1730302258011,-500.0,0.0003452,5]
[341047917,1730302258021,-500.0,0.0003452,5]
[341047918,1730302258030,-500.0,0.0003452,5]
[341047919,1730302258039,-500.0,0.0003452,5]
[341047920,1730302258049,-500.0,0.0003452,5]
[341047921,1730302258058,-674.49,0.0003452,5]
[341047922,1730302258068,-982.93,0.0003452,5]
[341047923,1730302258078,-778.7,0.0003452,5]
[341047924,1730302258088,-500.0,0.0003452,5]
[341047925,1730302258097,-728.13,0.0003452,5]
[341047926,1730302258107,-500.0,0.0003452,5]
[341047927,1730302258116,-1522.75,0.0003452,5]
[341047928,1730302258126,-500.0,0.0003452,5]
[341047929,1730302258135,-552.1,0.0003452,5]
[341047930,1730302258144,-500.0,0.0003452,5]
[341047931,1730302258154,-500.0,0.0003452,5]
[341047932,1730302258164,-662.62,0.0003452,5]
[341047933,1730302258175,-321.01743904,0.0003452,5]
[341047934,1730302258185,-1018.42,0.0003452,5]
[341047935,1730302258194,-500.0,0.0003452,5]
[341047936,1730302258204,-500.0,0.0003452,5]
[341047937,1730302258214,-500.0,0.0003452,5]
[341047938,1730302258223,-1327.53,0.0003452,5]
[341047939,1730302258233,-500.0,0.0003452,5]
[341047940,1730302258242,-500.0,0.0003452,5]
[341047941,1730302258252,-560.36,0.0003452,5]
[341047942,1730302258262,-607.17,0.0003452,5]
[341047943,1730302258271,-500.0,0.0003452,5]
[341047944,1730302258281,-500.0,0.0003452,5]
[341047945,1730302258290,-508.13,0.0003452,5]
[341047946,1730302258300,-1605.64,0.0003452,2]
[341047947,1730302258310,-500.0,0.0003452,5]
[341047948,1730302258320,-863.12,0.0003452,5]
[341047949,1730302258331,-1678.61,0.0003452,5]
[341047950,1730302258340,-656.55,0.0003452,5]
[341047951,1730302258350,-893.64,0.0003452,5]
[341047952,1730302258359,-1610.11,0.0003452,5]
[341047953,1730302258369,-500.0,0.0003452,5]
[341047954,1730302258378,-742.19,0.0003452,5]
[341047955,1730302258388,-785.2,0.0003452,5]
[341047956,1730302258397,-638.8,0.0003452,5]
[341047957,1730302258406,-536.5,0.0003452,5]
[341047958,1730302258415,-948.73,0.0003452,5]
[341047959,1730302258425,-500.0,0.0003452,5]
[341047960,1730302258436,-596.98,0.0003452,5]
[341047961,1730302258445,-1435.74,0.0003452,5]
[341047962,1730302258455,-500.0,0.0003452,5]
[341047963,1730302258464,-500.0,0.0003452,5]
[341047964,1730302258474,-1131.97,0.0003452,5]
[341047965,1730302258484,-500.0,0.0003452,5]
[341047966,1730302258493,-500.0,0.0003452,5]
[341047967,1730302258503,-500.0,0.0003452,5]
[341047968,1730302258512,-2913.63,0.0003452,5]
[341047969,1730302258522,-500.0,0.0003452,5]
[341047970,1730302258533,-499.15357848,0.0003452,5]
[341047971,1730302258543,-500.0,0.0003452,5]
[341047972,1730302258558,-1246.85,0.0003452,5]
[341047973,1730302258567,-500.0,0.0003452,5]
[341047974,1730302258577,-682.68,0.0003452,5]
[341047975,1730302258586,-909.5,0.0003452,5]
[341047976,1730302258596,-1653.57,0.0003452,5]
[341047977,1730302258606,-512.41,0.0003452,5]
[341047978,1730302258616,-500.0,0.0003452,5]
[341047979,1730302258628,-568.82,0.0003452,5]
[341047980,1730302258637,-500.0,0.0003452,5]
[341047981,1730302258646,-607.5,0.0003452,5]
[341047982,1730302258655,-500.0,0.0003452,5]
[341047983,1730302258665,-685.64,0.0003452,5]
[341047984,1730302258675,-500.0,0.0003452,5]
[341047985,1730302258685,-529.75,0.0003452,5]
[341047986,1730302258695,-548.22,0.0003452,5]
[341047987,1730302258705,-728.2,0.0003452,5]
[341047988,1730302258715,-500.0,0.0003452,5]
[341047989,1730302258725,-500.0,0.0003452,5]
[341047990,1730302258734,-1132.3,0.0003452,5]
[341047991,1730302258744,-500.0,0.0003452,5]
[341047992,1730302258754,-597.03,0.0003452,5]
[341047993,1730302258763,-500.0,0.0003452,5]
[341047994,1730302258773,-500.0,0.0003452,5]
[341047995,1730302258783,-1047.4,0.0003452,5]
[341047996,1730302258792,-770.64,0.0003452,5]
[341047997,1730302258802,-500.0,0.0003452,5]
[341047998,1730302258811,-500.0,0.0003452,5]
[341047999,1730302258820,-535.78,0.0003452,5]
[341048000,1730302258829,-500.0,0.0003452,5]
[341048001,1730302258839,-507.29,0.0003452,5]
[341048002,1730302258848,-879.42,0.0003452,5]
[341048003,1730302258858,-536.48,0.0003452,5]
[341048004,1730302258867,-1152.94,0.0003452,5]
[341048005,1730302258877,-500.0,0.0003452,5]
[341048006,1730302258886,-538.17,0.0003452,5]
[341048007,1730302258896,-1061.7,0.0003452,5]
[341048008,1730302258905,-500.0,0.0003452,5]
[341048009,1730302258915,-745.29,0.0003452,5]
[341048010,1730302258924,-1669.21,0.0003452,5]
[341048011,1730302258933,-3103.25,0.0003452,5]
[341048012,1730302258944,-500.0,0.0003452,5]
[341048013,1730302258953,-500.0,0.0003452,5]
[341048014,1730302258962,-500.0,0.0003452,5]
[341048015,1730302258973,-838.83,0.00034793,5]
[341048016,1730302258982,-500.0,0.00034794,5]
[341048017,1730302258991,-500.0,0.00034794,5]
[341048018,1730302259000,-500.0,0.00034794,5]
[341048019,1730302259010,-500.0,0.00034794,5]
[341048020,1730302259019,-500.0,0.00034794,5]
[341048021,1730302259028,-500.0,0.00034794,5]
[341048022,1730302259037,-500.0,0.00034794,5]
[341048023,1730302259046,-500.0,0.00034794,5]
[341048024,1730302259055,-500.0,0.00034794,5]
[341048025,1730302259064,-500.0,0.00034794,5]
[341048026,1730302259074,-500.0,0.00034794,5]
[341048027,1730302259083,-500.0,0.00034794,5]
[341048028,1730302259093,-500.0,0.00034794,5]
[341048029,1730302259102,-650.94,0.00034794,5]
[341048030,1730302259111,-500.0,0.00034794,5]
[341048031,1730302259121,-500.0,0.00034794,5]
[341048032,1730302259130,-500.0,0.00034794,5]
[341048033,1730302259140,-645.8,0.00034794,5]
[341048034,1730302259149,-820.11,0.00034794,5]
[341048035,1730302259159,-1894.55,0.00034794,5]
[341048036,1730302259168,-2596.24,0.00034794,5]
[341048037,1730302259177,-1296.63,0.00034794,5]
[341048038,1730302259188,-500.0,0.00034794,5]
[341048039,1730302259198,-489.33578744,0.00034794,5]
[341048040,1730302259207,-500.0,0.00034794,5]
[341048041,1730302259217,-500.0,0.00034794,5]
[341048042,1730302259227,-500.0,0.00034794,5]
[341048043,1730302259237,-500.0,0.00034794,5]
[341048044,1730302259247,-500.0,0.00034794,5]
[341048045,1730302259256,-500.0,0.00034794,5]
[341048046,1730302259265,-500.0,0.00034794,5]
[341048047,1730302259275,-500.0,0.00034794,5]
[341048048,1730302259284,-500.0,0.00034794,5]
[341048049,1730302259293,-500.0,0.00034794,5]
[341048050,1730302259303,-500.0,0.00034794,5]
[341048051,1730302259312,-500.0,0.00034794,5]
[341048052,1730302259321,-522.83,0.00034794,5]
[341048053,1730302259331,-858.81,0.00034794,5]
[341048054,1730302259342,-644.61,0.00034794,5]
[341048055,1730302259353,-500.0,0.00034794,5]
[341048056,1730302259362,-500.0,0.00034794,5]
[341048057,1730302259372,-1013.76,0.00034794,5]
[341048058,1730302259382,-1525.36,0.00034794,5]
[341048059,1730302259392,-994.82,0.00034794,5]
[341048060,1730302259402,-1722.33,0.00034794,5]
[341048061,1730302259414,-500.0,0.00034794,5]
[341048062,1730302259423,-765.48,0.00034794,5]
[341048063,1730302259432,-520.05,0.00034794,5]
[341048064,1730302259447,-675.19,0.00034794,5]
[341048065,1730302259456,-746.68,0.00034794,5]
[341048066,1730302259465,-500.0,0.00034794,5]
[341048067,1730302259475,-500.0,0.00034794,5]
[341048068,1730302259484,-784.67,0.00034794,5]
[341048069,1730302259493,-230.54098201,0.00034794,5]
[341048070,1730302259504,-500.0,0.00034794,5]
[341048071,1730302259515,-1069.78,0.00034794,5]
[341048072,1730302259525,-736.62,0.00034794,5]
[341048073,1730302259536,-500.0,0.00034794,5]
[341048074,1730302259547,-854.42,0.00034794,5]
[341048075,1730302259562,-606.31,0.00034794,5]
[341048076,1730302259571,-500.0,0.00034794,5]
[341048077,1730302259582,-500.0,0.00034794,5]
[341048078,1730302259594,-500.0,0.00034794,5]
[341048079,1730302259604,-500.0,0.00034794,5]
[341048080,1730302259614,-500.0,0.00034794,5]
[341048081,1730302259624,-500.0,0.00034794,5]
[341048082,1730302259635,-500.0,0.00034794,5]
[341048083,1730302259644,-500.0,0.00034794,5]
[341048084,1730302259653,-500.0,0.00034794,5]
[341048085,1730302259663,-500.0,0.00034794,5]
[341048086,1730302259672,-674.49,0.00034794,5]
[341048087,1730302259681,-982.93,0.00034794,5]
[341048088,1730302259691,-778.7,0.00034794,5]
[341048089,1730302259700,-500.0,0.00034794,5]
[341048090,1730302259710,-728.13,0.00034794,5]
[341048091,1730302259719,-500.0,0.00034794,5]
[341048092,1730302259728,-1522.75,0.00034794,5]
[341048093,1730302259737,-500.0,0.00034794,5]
[341048094,1730302259747,-552.1,0.00034794,5]
[341048095,1730302259756,-500.0,0.00034794,5]
[341048096,1730302259766,-500.0,0.00034794,5]
[341048097,1730302259775,-662.62,0.00034794,5]
[341048098,1730302259785,-1018.42,0.00034794,5]
[341048099,1730302259794,-500.0,0.00034794,5]
[341048100,1730302259803,-500.0,0.00034794,5]
[341048101,1730302259813,-500.0,0.00034794,5]
[341048102,1730302259822,-1327.53,0.00034794,5]
[341048103,1730302259831,-500.0,0.00034794,5]
[341048104,1730302259841,-500.0,0.00034794,5]
[341048105,1730302259850,-560.36,0.00034794,5]
[341048106,1730302259859,-607.17,0.00034794,5]
[341048107,1730302259869,-500.0,0.00034794,5]
[341048108,1730302259878,-500.0,0.00034794,5]
[341048109,1730302259887,-508.13,0.00034794,5]
[341048110,1730302259896,-1605.64,0.00034794,2]
[341048111,1730302259906,-500.0,0.00034794,5]
[341048112,1730302259915,-863.12,0.00034794,5]
[341048113,1730302259925,-1678.61,0.00034794,5]
[341048114,1730302259934,-656.55,0.00034794,5]
[341048115,1730302259944,-893.64,0.00034794,5]
[341048116,1730302259953,-1610.11,0.00034794,5]
[341048117,1730302259962,-500.0,0.00034794,5]
[341048118,1730302259972,-742.19,0.00034794,5]
[341048119,1730302259981,-785.2,0.00034794,5]
[341048120,1730302259991,-638.8,0.00034794,5]
[341048121,1730302260000,-536.5,0.00034794,5]
[341048122,1730302260009,-948.73,0.00034794,5]
[341048123,1730302260019,-500.0,0.00034794,5]
[341048124,1730302260028,-596.98,0.00034794,5]
[341048125,1730302260038,-1435.74,0.00034794,5]
[341048126,1730302260047,-500.0,0.00034794,5]
[341048127,1730302260057,-500.0,0.00034794,5]
[341048128,1730302260067,-1131.97,0.00034794,5]
[341048129,1730302260211,-500.0,0.00034794,5]
[341048130,1730302260222,-500.0,0.00034794,5]
[341048131,1730302260232,-500.0,0.00034794,5]
[341048132,1730302260242,-2913.63,0.00034794,5]
[341048133,1730302260252,-500.0,0.00034794,5]
[341048134,1730302260262,-500.0,0.00034794,5]
[341048135,1730302260273,-1246.85,0.00034794,5]
[341048136,1730302260283,-500.0,0.00034794,5]
[341048137,1730302260293,-682.68,0.00034794,5]
[341048138,1730302260303,-909.5,0.00034794,5]
[341048139,1730302260313,-1653.57,0.00034794,5]
[341048140,1730302260322,-512.41,0.00034794,5]
[341048141,1730302260332,-500.0,0.00034794,5]
[341048142,1730302260342,-568.82,0.00034794,5]
[341048143,1730302260351,-500.0,0.00034794,5]
[341048144,1730302260361,-607.5,0.00034794,5]
[341048145,1730302260370,-500.0,0.00034794,5]
[341048146,1730302260379,-685.64,0.00034794,5]
[341048147,1730302260389,-500.0,0.00034794,5]
[341048148,1730302260399,-529.75,0.00034794,5]
[341048149,1730302260408,-548.22,0.00034794,5]
[341048150,1730302260418,-728.2,0.00034794,5]
[341048151,1730302260428,-500.0,0.00034794,5]
[341048152,1730302260439,-500.0,0.00034794,5]
[341048153,1730302260450,-1132.3,0.00034794,5]
[341048154,1730302260460,-500.0,0.00034794,5]
[341048155,1730302260470,-597.03,0.00034794,5]
[341048156,1730302260479,-500.0,0.00034794,5]
[341048157,1730302260488,-500.0,0.00034794,5]
[341048158,1730302260498,-1047.4,0.00034794,5]
[341048159,1730302260508,-770.64,0.00034794,5]
[341048160,1730302260518,-500.0,0.00034794,5]
[341048161,1730302260528,-500.0,0.00034794,5]
[341048162,1730302260539,-535.78,0.00034794,5]
[341048163,1730302260553,-500.0,0.00034794,5]
[341048164,1730302260563,-507.29,0.00034794,5]
[341048165,1730302260573,-879.42,0.00034794,5]
[341048166,1730302260582,-536.48,0.00034794,5]
[341048167,1730302260592,-1152.94,0.00034794,5]
[341048168,1730302260603,-500.0,0.00034794,5]
[341048169,1730302260613,-538.17,0.00034794,5]
[341048170,1730302260624,-1061.7,0.00034794,5]
[341048171,1730302260634,-500.0,0.00034794,5]
[341048172,1730302260643,-745.29,0.00034794,5]
[341048173,1730302260654,-1669.21,0.00034794,5]
[341048174,1730302260663,-3103.25,0.00034794,5]
[341048175,1730302260673,-500.0,0.00034794,5]
[341048176,1730302260683,-500.0,0.00034794,5]
[341048177,1730302260694,-811.0,0.00034798,2]
[341048178,1730302260704,-463.531,0.00034798,2]
[341048179,1730302260714,-1265.147,0.00034798,2]
[341048180,1730302260723,-391.63307052,0.00034849,120]
[341048181,1730302260732,-1678.562242,0.0003486,14]
[341048182,1730302260742,-1000.0,0.0003488,14]
[341048183,1730302260752,-1000.0,0.000349,14]
[341048184,1730302260762,-1000.0,0.000349,7]
[341048185,1730302260773,-900.0,0.000349,12]
[341048186,1730302260782,-309.10861296,0.00034913,2]
[341048187,1730302260792,-1000.0,0.0003492,14]
[341048188,1730302260801,-1000.0,0.0003494,14]
[341048189,1730302260812,-1327.808652,0.0003494,14]
[341048190,1730302260822,-1000.0,0.0003496,14]
[341048191,1730302260839,-1000.0,0.0003496,14]
[341048192,1730302260867,-1000.0,0.0003498,14]
[341048193,1730302261101,-1000.0,0.0003498,14]
[341048194,1730302261112,-3297.9468729,0.00035,90]
[341048195,1730302261121,-1148.65,0.00035,2]
[341048196,1730302261131,-1000.0,0.00035,14]
[341048197,1730302261141,-1000.0,0.00035,14]
[341048198,1730302261151,-404.51023178,0.00035,2]
[341048199,1730302261161,-500.0,0.00035068,5]
[341048200,1730302261171,-500.0,0.00035068,5]
[341048201,1730302261180,-500.0,0.00035068,5]
[341048202,1730302261192,-500.0,0.00035068,5]
[341048203,1730302261202,-500.0,0.00035068,5]
[341048204,1730302261211,-500.0,0.00035068,5]
[341048205,1730302261221,-268.9853034,0.00035068,5]
[341048206,1730302261230,-500.0,0.00035068,5]
[341048207,1730302261239,-500.0,0.00035068,5]
[341048208,1730302261248,-500.0,0.00035068,5]
[341048209,1730302261258,-500.0,0.00035068,5]
[341048210,1730302261267,-500.0,0.00035068,5]
[341048211,1730302261277,-500.0,0.00035068,5]
[341048212,1730302261286,-650.94,0.00035068,5]
[341048213,1730302261295,-500.0,0.00035068,5]
[341048214,1730302261305,-500.0,0.00035068,5]
[341048215,1730302261315,-645.8,0.00035068,5]
[341048216,1730302261325,-500.0,0.00035068,5]
[341048217,1730302261336,-820.11,0.00035068,5]
[341048218,1730302261345,-1894.55,0.00035068,5]
[341048219,1730302261355,-2596.24,0.00035068,5]
[341048220,1730302261364,-1296.63,0.00035068,5]
[341048221,1730302261374,-500.0,0.00035068,5]
[341048222,1730302261383,-500.0,0.00035068,5]
[341048223,1730302261393,-500.0,0.00035068,5]
[341048224,1730302261402,-500.0,0.00035068,5]
[341048225,1730302261411,-500.0,0.00035068,5]
[341048226,1730302261422,-500.0,0.00035068,5]
[341048227,1730302261431,-500.0,0.00035068,5]
[341048228,1730302261443,-500.0,0.00035068,5]
[341048229,1730302261452,-500.0,0.00035068,5]
[341048230,1730302261467,-360.17554882,0.00035068,5]
[341048231,1730302261476,-500.0,0.00035068,5]
[341048232,1730302261486,-500.0,0.00035068,5]
[341048233,1730302261507,-500.0,0.00035068,5]
[341048234,1730302261517,-522.83,0.00035068,5]
[341048235,1730302261527,-858.81,0.00035068,5]
[341048236,1730302261537,-644.61,0.00035068,5]
[341048237,1730302261548,-500.0,0.00035068,5]
[341048238,1730302261560,-500.0,0.00035068,5]
[341048239,1730302261569,-1013.76,0.00035068,5]
[341048240,1730302261580,-1525.36,0.00035068,5]
[341048241,1730302261589,-994.82,0.00035068,5]